fUST/lending_fUST_20260612
["ID","MTS","AMOUNT","RATE_DAILY","PERIOD"]
[424908845,1781266244000,-500.0,0.00035616,18]
[424908912,1781266244000,-1171.32,0.0003589,18]
[424908863,1781266244000,-562.69,0.0003589,18]
[424908943,1781266244000,-500.0,0.0003589,18]
[424908949,1781266244000,-500.0,0.0003589,18]
[424908947,1781266244000,-500.0,0.0003589,18]
[424908952,1781266244000,-500.0,0.0003589,6]
[424908945,1781266244000,-697.14,0.0003589,18]
[424908954,1781266244000,-678.81,0.0003589,18]
[424908961,1781266244000,-500.0,0.0003589,18]
[424908956,1781266244000,-695.2,0.0003589,18]
[424908960,1781266244000,-500.0,0.0003589,18]
[424908958,1781266244000,-500.0,0.0003589,18]
[424908951,1781266244000,-500.0,0.0003589,18]
[424908965,1781266244000,-500.0,0.0003589,18]
[424908966,1781266244000,-500.0,0.0003589,18]
[424908940,1781266244000,-500.0,0.0003589,18]
[424908968,1781266244000,-500.0,0.0003589,18]
[424908979,1781266244000,-780.68,0.0003589,18]
[424908973,1781266244000,-500.0,0.0003589,18]
[424908972,1781266244000,-500.0,0.0003589,18]
[424908977,1781266244000,-4138.37,0.0003589,18]
[424908975,1781266244000,-500.0,0.0003589,18]
[424908980,1781266244000,-500.0,0.0003589,18]
[424908982,1781266244000,-500.0,0.0003589,18]
[424908987,1781266244000,-500.0,0.0003589,18]
[424908989,1781266244000,-500.0,0.0003589,18]
[424908991,1781266244000,-500.0,0.0003589,18]
[424908996,1781266244000,-500.0,0.0003589,18]
[424908994,1781266244000,-500.0,0.0003589,18]
[424908873,1781266244000,-923.02,0.0003589,18]
[424908970,1781266244000,-840.12,0.0003589,18]
[424908941,1781266244000,-2142.79,0.0003589,18]
[424908963,1781266244000,-1114.85,0.0003589,18]
[424908936,1781266244000,-500.0,0.0003589,18]
[424908856,1781266244000,-26969.43,0.00035616,18]
[424908886,1781266244000,-500.0,0.0003589,18]
[424908865,1781266244000,-992.96,0.0003589,18]
[424908887,1781266244000,-500.39517529,0.0003589,18]
[424908938,1781266244000,-651.99,0.0003589,18]
[424908891,1781266244000,-214.22778724,0.0003589,18]
[424908893,1781266244000,-658.6,0.0003589,18]
[424908895,1781266244000,-542.09665435,0.0003589,18]
[424908897,1781266244000,-539.45,0.0003589,18]
[424908899,1781266244000,-892.45,0.0003589,18]
[424908993,1781266244000,-1054.64,0.0003589,18]
[424908905,1781266244000,-500.0,0.0003589,18]
[424908907,1781266244000,-500.0,0.0003589,18]
[424908908,1781266244000,-500.0,0.0003589,18]
[424908901,1781266244000,-896.03,0.0003589,18]
[424908877,1781266244000,-500.0,0.0003589,18]
[424908903,1781266244000,-915.53,0.0003589,18]
[424908934,1781266244000,-500.0,0.0003589,18]
[424908925,1781266244000,-500.0,0.0003589,18]
[424908921,1781266244000,-522.46045399,0.0003589,18]
[424908923,1781266244000,-500.0,0.0003589,18]
[424908930,1781266244000,-500.0,0.0003589,18]
[424908932,1781266244000,-500.0,0.0003589,18]
[424908928,1781266244000,-500.0,0.0003589,18]
[424908926,1781266244000,-1860.12,0.0003589,18]
[424908917,1781266244000,-840.3,0.0003589,18]
[424908915,1781266244000,-1056.6,0.0003589,18]
[424908913,1781266244000,-1015.91,0.0003589,18]
[424908919,1781266244000,-641.43,0.0003589,18]
[424908910,1781266244000,-1450.54,0.0003589,18]
[424909000,1781266245000,-562.49,0.0003589,18]
[424909004,1781266245000,-500.0,0.0003589,18]
[424909002,1781266245000,-1479.28,0.0003589,18]
[424909006,1781266245000,-509.4,0.0003589,18]
[424909010,1781266245000,-6411.14,0.0003589,18]
[424909008,1781266245000,-500.0,0.0003589,18]
[424909013,1781266245000,-25.98830324,0.0003589,18]
[424909012,1781266245000,-1272.48,0.0003589,18]
[424908998,1781266245000,-500.0,0.0003589,18]
[424909141,1781266246000,-35.74206338,0.0003589,18]
[424909140,1781266246000,-474.01169676,0.0003589,18]
[424909138,1781266246000,-500.0,0.00035616,18]
[424910167,1781266440000,5000.0,0.00024658,30]
[424910168,1781266449000,1112.99468965,0.000101,9]
[424910170,1781266464000,5000.0,0.000101,9]
[424910172,1781266486000,5000.0,0.000101,9]
[424910311,1781267432000,-1554.6986748,0.0002224,2]
[424910300,1781267432000,-4729.49377084,9.134e-05,2]
[424910308,1781267432000,-5337.3891183,0.00021404,2]
[424910314,1781267432000,-202.41234505,0.00022373,2]
[424910309,1781267432000,-6311.8424062,0.00021404,2]
[424910310,1781267432000,-1450.1118038,0.0002224,2]
[424910315,1781267432000,-153.53151164,0.00022373,2]
[424910306,1781267432000,-270.50622916,9.134e-05,2]
[424910312,1781267432000,-503.2500366,0.00022369,2]
[424910313,1781267432000,-500.0,0.00022373,2]
[424910322,1781267432000,-136.71782906,0.00022373,2]
[424910321,1781267432000,-500.0,0.00022373,2]
[424910320,1781267432000,-473.58755439,0.00022373,2]
[424910319,1781267432000,-500.0,0.00022373,2]
[424910316,1781267432000,-532.72182746,0.00022373,2]
[424910318,1781267432000,-500.0,0.00022373,2]
[424910317,1781267432000,-500.0,0.00022373,2]
[424910375,1781267438000,-457.58171406,0.00022373,2]
[424910374,1781267438000,-363.28217094,0.00022373,2]
[424910387,1781267438000,-42.41828594,0.00022373,2]
[424910390,1781267438000,-500.0,0.00022373,2]
[424910391,1781267438000,-500.0,0.00022373,2]
[424910393,1781267438000,-500.0,0.00022373,2]
[424910397,1781267438000,-500.0,0.00022373,2]
[424910402,1781267438000,-500.0,0.00022373,2]
[424910401,1781267438000,-500.0,0.00022373,2]
[424910404,1781267438000,-500.0,0.00022373,2]
[424910395,1781267438000,-500.0,0.00022373,2]
[424910412,1781267438000,-500.0,0.00022373,2]
[424910408,1781267438000,-500.0,0.00022373,2]
[424910399,1781267438000,-500.0,0.00022373,2]
[424910410,1781267438000,-500.0,0.00022373,2]
[424910413,1781267438000,-500.0,0.00022373,2]
[424910415,1781267438000,-500.0,0.00022373,2]
[424910417,1781267438000,-500.0,0.00022373,2]
[424910419,1781267438000,-500.0,0.00022373,2]
[424910421,1781267438000,-500.0,0.00022373,2]
[424910423,1781267438000,-500.0,0.00022373,2]
[424910406,1781267438000,-500.0,0.00022373,2]
[424910502,1781267439000,-500.0,0.00025398,2]
[424910506,1781267439000,-500.0,0.00025398,2]
[424910495,1781267439000,-1500.0,0.00024658,2]
[424910499,1781267439000,-162.05104194,0.00025024,2]
[424910497,1781267439000,-2333.359774,0.00024658,2]
[424910480,1781267439000,-186.53999618,0.00023045,2]
[424910493,1781267439000,-1500.0,0.00024658,2]
[424910490,1781267439000,-196.892,0.00024619,7]
[424910477,1781267439000,-186.53999618,0.00022945,2]
[424910491,1781267439000,-207.116364,0.00024619,2]
[424910478,1781267439000,-163.22,0.00022945,2]
[424910500,1781267439000,-417.15472785,0.00025364,2]
[424910509,1781267439000,-2493.49134895,0.000254,2]
[424910522,1781267439000,-2493.49134895,0.000265,2]
[424910508,1781267439000,-500.0,0.00025398,2]
[424910511,1781267439000,-170.0,0.0002543,2]
[424910513,1781267439000,-2493.49134895,0.000257,2]
[424910515,1781267439000,-2493.49134895,0.000259,2]
[424910517,1781267439000,-600.0,0.00025906,10]
[424910519,1781267439000,-170.0,0.00025997,2]
[424910532,1781267439000,-162.05104194,0.00027504,2]
[424910520,1781267439000,-2493.49134895,0.000262,2]
[424910530,1781267439000,-2493.49134895,0.000275,2]
[424910524,1781267439000,-2493.49134895,0.000267,2]
[424910528,1781267439000,-2493.49134895,0.000273,2]
[424910534,1781267439000,-2493.49134895,0.000278,2]
[424910475,1781267439000,-163.22,0.00022845,2]
[424910526,1781267439000,-2493.49134895,0.00027,2]
[424910504,1781267439000,-263.54,0.00025398,2]
[424910486,1781267439000,-199.94405414,0.00024059,2]
[424910453,1781267439000,-500.0,0.00022373,2]
[424910473,1781267439000,-186.53999618,0.00022845,2]
[424910538,1781267439000,-720.0,0.00028497,30]
[424910434,1781267439000,-500.0,0.00022373,2]
[424910440,1781267439000,-500.0,0.00022373,2]
[424910436,1781267439000,-500.0,0.00022373,2]
[424910438,1781267439000,-500.0,0.00022373,2]
[424910427,1781267439000,-500.0,0.00022373,2]
[424910425,1781267439000,-500.0,0.00022373,2]
[424910431,1781267439000,-500.0,0.00022373,2]
[424910429,1781267439000,-500.0,0.00022373,2]
[424910432,1781267439000,-500.0,0.00022373,2]
[424910444,1781267439000,-500.0,0.00022373,2]
[424910442,1781267439000,-500.0,0.00022373,2]
[424910446,1781267439000,-500.0,0.00022373,2]
[424910484,1781267439000,-163.22,0.00023145,2]
[424910447,1781267439000,-500.0,0.00022373,2]
[424910455,1781267439000,-500.0,0.00022373,2]
[424910460,1781267439000,-15000.0,0.00022376,2]
[424910456,1781267439000,-500.0,0.00022373,2]
[424910462,1781267439000,-162.05104198,0.00022545,2]
[424910458,1781267439000,-651.23729585,0.00022375,2]
[424910451,1781267439000,-500.0,0.00022373,2]
[424910464,1781267439000,-186.53999618,0.00022645,2]
[424910465,1781267439000,-163.22,0.00022645,2]
[424910467,1781267439000,-195.88,0.00022688,2]
[424910469,1781267439000,-186.53999618,0.00022745,2]
[424910482,1781267439000,-163.22,0.00023045,2]
[424910471,1781267439000,-163.22,0.00022745,2]
[424910488,1781267439000,-161.85647476,0.00024059,120]
[424910449,1781267439000,-500.0,0.00022373,2]
[424910539,1781267439000,-300.0,0.0002894,2]
[424910592,1781267439000,-394.366273,0.00035516,7]
[424910543,1781267439000,-162.05104194,0.00029983,2]
[424910601,1781267439000,-394.366273,0.00035516,7]
[424910605,1781267439000,-292.322701,0.00035516,7]
[424910607,1781267439000,-151.0,0.00035516,7]
[424910608,1781267439000,-151.0,0.00035516,7]
[424910610,1781267439000,-151.0,0.00035516,7]
[424910612,1781267439000,-151.0,0.00035516,7]
[424910614,1781267439000,-313.438526,0.00035516,7]
[424910623,1781267439000,-313.438526,0.00035516,7]
[424910625,1781267439000,-313.438526,0.00035516,7]
[424910628,1781267439000,-188.25846,0.00035516,7]
[424910626,1781267439000,-313.438526,0.00035516,7]
[424910616,1781267439000,-313.438526,0.00035516,7]
[424910621,1781267439000,-313.438526,0.00035516,7]
[424910618,1781267439000,-313.438526,0.00035516,7]
[424910619,1781267439000,-313.438526,0.00035516,7]
[424910632,1781267439000,-188.25846,0.00035516,7]
[424910636,1781267439000,-188.25846,0.00035516,7]
[424910634,1781267439000,-188.25846,0.00035516,7]
[424910640,1781267439000,-188.25846,0.00035516,7]
[424910641,1781267439000,-188.25846,0.00035516,7]
[424910647,1781267439000,-175.567414,0.00035516,7]
[424910638,1781267439000,-188.25846,0.00035516,7]
[424910645,1781267439000,-151.0,0.00035516,7]
[424910643,1781267439000,-151.0,0.00035516,7]
[424910649,1781267439000,-297.511755,0.00035516,7]
[424910652,1781267439000,-297.511755,0.00035516,7]
[424910654,1781267439000,-297.511755,0.00035516,7]
[424910536,1781267439000,-152.0,0.00028076,7]
[424910651,1781267439000,-297.511755,0.00035516,7]
[424910599,1781267439000,-394.366273,0.00035516,7]
[424910589,1781267439000,-151.0,0.00035516,7]
[424910630,1781267439000,-188.25846,0.00035516,7]
[424910598,1781267439000,-394.366273,0.00035516,7]
[424910541,1781267439000,-271.5693734,0.00029383,2]
[424910603,1781267439000,-394.366273,0.00035516,7]
[424910550,1781267439000,-162.05104194,0.00032462,2]
[424910549,1781267439000,-864.0,0.00031346,30]
[424910547,1781267439000,-325.1040649,0.00030588,2]
[424910554,1781267439000,-1000.0,0.00034481,30]
[424910552,1781267439000,-310.36499817,0.00033059,2]
[424910556,1781267439000,-162.05104194,0.00034941,2]
[424910558,1781267439000,-250.0,0.00035068,37]
[424910560,1781267439000,-250.0,0.00035293,38]
[424910562,1781267439000,-668.65185756,0.00035429,30]
[424910563,1781267439000,-250.0,0.00035501,38]
[424910574,1781267439000,-372.676967,0.00035515,7]
[424910578,1781267439000,-372.676967,0.00035515,7]
[424910576,1781267439000,-372.676967,0.00035515,7]
[424910545,1781267439000,-197.13965769,0.00030103,2]
[424910580,1781267439000,-372.676967,0.00035515,7]
[424910565,1781267439000,-550.998442,0.00035515,7]
[424910594,1781267439000,-394.366273,0.00035516,7]
[424910590,1781267439000,-394.366273,0.00035516,7]
[424910587,1781267439000,-151.0,0.00035516,7]
[424910585,1781267439000,-292.712843,0.00035515,7]
[424910583,1781267439000,-151.0,0.00035515,7]
[424910596,1781267439000,-394.366273,0.00035516,7]
[424910571,1781267439000,-550.998442,0.00035515,7]
[424910572,1781267439000,-151.0,0.00035515,7]
[424910581,1781267439000,-151.0,0.00035515,7]
[424910567,1781267439000,-550.998442,0.00035515,7]
[424910569,1781267439000,-550.998442,0.00035515,7]
[424910729,1781267440000,-1176.82,0.00035616,18]
[424910730,1781267440000,-175.310135,0.00035616,7]
[424910735,1781267440000,-770.28,0.00035616,18]
[424910737,1781267440000,-500.0,0.00035616,18]
[424910732,1781267440000,-587.98,0.00035616,18]
[424910725,1781267440000,-151.0,0.00035616,7]
[424910727,1781267440000,-151.0,0.00035616,7]
[424910709,1781267440000,-372.676967,0.00035516,7]
[424910724,1781267440000,-500.0,0.00035616,18]
[424910734,1781267440000,-500.0,0.00035616,18]
[424910722,1781267440000,-500.0,0.00035616,18]
[424910739,1781267440000,-639.05,0.00035616,18]
[424910741,1781267440000,-500.0,0.00035616,18]
[424910759,1781267440000,-500.0,0.00035616,18]
[424910746,1781267440000,-500.0,0.00035616,18]
[424910744,1781267440000,-500.0,0.00035616,18]
[424910760,1781267440000,-500.0,0.00035616,18]
[424910749,1781267440000,-500.0,0.00035616,18]
[424910762,1781267440000,-500.0,0.00035616,18]
[424910764,1781267440000,-394.366273,0.00035616,7]
[424910751,1781267440000,-500.0,0.00035616,18]
[424910757,1781267440000,-500.0,0.00035616,18]
[424910767,1781267440000,-394.366273,0.00035616,7]
[424910754,1781267440000,-622.24,0.00035616,18]
[424910766,1781267440000,-394.366273,0.00035616,7]
[424910752,1781267440000,-500.0,0.00035616,18]
[424910711,1781267440000,-372.676967,0.00035516,7]
[424910742,1781267440000,-500.0,0.00035616,18]
[424910708,1781267440000,-151.0,0.00035516,7]
[424910659,1781267440000,-297.511755,0.00035516,7]
[424910706,1781267440000,-550.998442,0.00035516,7]
[424910769,1781267440000,-394.366273,0.00035616,7]
[424910668,1781267440000,-160.0,0.00035516,7]
[424910660,1781267440000,-297.511755,0.00035516,7]
[424910664,1781267440000,-297.511755,0.00035516,7]
[424910663,1781267440000,-297.511755,0.00035516,7]
[424910666,1781267440000,-160.0,0.00035516,7]
[424910670,1781267440000,-160.0,0.00035516,7]
[424910672,1781267440000,-160.0,0.00035516,7]
[424910674,1781267440000,-160.0,0.00035516,7]
[424910676,1781267440000,-160.0,0.00035516,7]
[424910680,1781267440000,-160.0,0.00035516,7]
[424910678,1781267440000,-160.0,0.00035516,7]
[424910682,1781267440000,-177.331958,0.00035516,7]
[424910692,1781267440000,-151.0,0.00035516,7]
[424910681,1781267440000,-177.331958,0.00035516,7]
[424910694,1781267440000,-151.0,0.00035516,7]
[424910697,1781267440000,-151.0,0.00035516,7]
[424910685,1781267440000,-177.331958,0.00035516,7]
[424910689,1781267440000,-151.0,0.00035516,7]
[424910684,1781267440000,-177.331958,0.00035516,7]
[424910687,1781267440000,-151.0,0.00035516,7]
[424910699,1781267440000,-151.0,0.00035516,7]
[424910701,1781267440000,-550.998442,0.00035516,7]
[424910702,1781267440000,-550.998442,0.00035516,7]
[424910715,1781267440000,-372.676967,0.00035516,7]
[424910717,1781267440000,-644.79446245,0.00035568,38]
[424910720,1781267440000,-818.08,0.00035616,18]
[424910719,1781267440000,-919.31,0.00035616,18]
[424910704,1781267440000,-550.998442,0.00035516,7]
[424910713,1781267440000,-372.676967,0.00035516,7]
[424910771,1781267440000,-394.366273,0.00035616,7]
[424910816,1781267440000,-188.25846,0.00035616,7]
[424910785,1781267440000,-500.0,0.00035616,18]
[424910833,1781267440000,-297.511755,0.00035616,7]
[424910835,1781267440000,-297.511755,0.00035616,7]
[424910831,1781267440000,-297.511755,0.00035616,7]
[424910836,1781267440000,-297.511755,0.00035616,7]
[424910838,1781267440000,-297.511755,0.00035616,7]
[424910840,1781267440000,-297.511755,0.00035616,7]
[424910842,1781267440000,-755.84,0.00035616,18]
[424910843,1781267440000,-297.511755,0.00035616,7]
[424910845,1781267440000,-297.511755,0.00035616,7]
[424910852,1781267440000,-160.0,0.00035616,7]
[424910850,1781267440000,-160.0,0.00035616,7]
[424910848,1781267440000,-160.0,0.00035616,7]
[424910847,1781267440000,-500.0,0.00035616,2]
[424910828,1781267440000,-151.0,0.00035616,7]
[424910854,1781267440000,-500.0,0.00035616,18]
[424910859,1781267440000,-160.0,0.00035616,7]
[424910857,1781267440000,-160.0,0.00035616,7]
[424910862,1781267440000,-160.0,0.00035616,7]
[424910860,1781267440000,-160.0,0.00035616,7]
[424910872,1781267440000,-177.331958,0.00035616,7]
[424910870,1781267440000,-2123.25,0.00035616,18]
[424910866,1781267440000,-177.331958,0.00035616,7]
[424910865,1781267440000,-177.331958,0.00035616,7]
[424910874,1781267440000,-177.331958,0.00035616,7]
[424910869,1781267440000,-177.331958,0.00035616,7]
[424910879,1781267440000,-177.331958,0.00035616,7]
[424910875,1781267440000,-177.331958,0.00035616,7]
[424910877,1781267440000,-177.331958,0.00035616,7]
[424910855,1781267440000,-160.0,0.00035616,7]
[424910825,1781267440000,-1302.88,0.00035616,18]
[424910776,1781267440000,-394.366273,0.00035616,7]
[424910830,1781267440000,-151.0,0.00035616,7]
[424910823,1781267440000,-500.0,0.00035616,18]
[424910783,1781267440000,-313.438526,0.00035616,7]
[424910773,1781267440000,-394.366273,0.00035616,7]
[424910774,1781267440000,-394.366273,0.00035616,7]
[424910780,1781267440000,-151.0,0.00035616,7]
[424910778,1781267440000,-151.0,0.00035616,7]
[424910791,1781267440000,-313.438526,0.00035616,7]
[424910788,1781267440000,-1195.92,0.00035616,18]
[424910786,1781267440000,-313.438526,0.00035616,7]
[424910781,1781267440000,-200.909958,0.00035616,7]
[424910794,1781267440000,-313.438526,0.00035616,7]
[424910792,1781267440000,-313.438526,0.00035616,7]
[424910796,1781267440000,-500.0,0.00035616,18]
[424910808,1781267440000,-188.25846,0.00035616,7]
[424910789,1781267440000,-313.438526,0.00035616,7]
[424910801,1781267440000,-500.0,0.00035616,18]
[424910797,1781267440000,-313.438526,0.00035616,7]
[424910821,1781267440000,-931.25,0.00035616,18]
[424910819,1781267440000,-188.25846,0.00035616,7]
[424910818,1781267440000,-188.25846,0.00035616,7]
[424910811,1781267440000,-188.25846,0.00035616,7]
[424910806,1781267440000,-500.0,0.00035616,18]
[424910814,1781267440000,-188.25846,0.00035616,7]
[424910826,1781267440000,-500.27456195,0.00035616,18]
[424910802,1781267440000,-1558.83,0.00035616,18]
[424910813,1781267440000,-188.25846,0.00035616,7]
[424910804,1781267440000,-967.03,0.00035616,18]
[424910809,1781267440000,-188.25846,0.00035616,7]
[424910799,1781267440000,-313.438526,0.00035616,7]
[424910951,1781267441000,-770.11,0.00035616,18]
[424910960,1781267441000,-500.0,0.00035616,18]
[424910958,1781267441000,-372.676967,0.00035616,7]
[424910955,1781267441000,-372.676967,0.00035616,7]
[424910950,1781267441000,-172.355153,0.00035616,7]
[424910943,1781267441000,-550.998442,0.00035616,7]
[424910932,1781267441000,-550.998442,0.00035616,7]
[424910934,1781267441000,-550.998442,0.00035616,7]
[424910937,1781267441000,-550.998442,0.00035616,7]
[424910936,1781267441000,-550.998442,0.00035616,7]
[424910931,1781267441000,-550.998442,0.00035616,7]
[424910961,1781267441000,-372.676967,0.00035616,7]
[424910948,1781267441000,-500.0,0.00035616,18]
[424910956,1781267441000,-372.676967,0.00035616,7]
[424910979,1781267441000,-500.0,0.00035616,18]
[424910970,1781267441000,-372.676967,0.00035616,7]
[424910963,1781267441000,-372.676967,0.00035616,7]
[424910966,1781267441000,-372.676967,0.00035616,7]
[424910968,1781267441000,-372.676967,0.00035616,7]
[424910965,1781267441000,-372.676967,0.00035616,7]
[424910983,1781267441000,-500.0,0.00035616,18]
[424910985,1781267441000,-4022.67,0.00035616,18]
[424910987,1781267441000,-748.35,0.00035616,18]
[424910989,1781267441000,-500.0,0.00035616,18]
[424910974,1781267441000,-372.676967,0.00035616,7]
[424910976,1781267441000,-372.676967,0.00035616,7]
[424910982,1781267441000,-500.0,0.00035616,18]
[424910946,1781267441000,-550.998441,0.00035616,7]
[424910978,1781267441000,-372.676976,0.00035616,7]
[424910953,1781267441000,-520.75,0.00035616,18]
[424910944,1781267441000,-550.998442,0.00035616,7]
[424910910,1781267441000,-1964.23,0.00035616,18]
[424910939,1781267441000,-550.998442,0.00035616,7]
[424910880,1781267441000,-177.331958,0.00035616,7]
[424910991,1781267441000,-500.0,0.00035616,18]
[424910884,1781267441000,-177.331958,0.00035616,7]
[424910895,1781267441000,-500.0,0.00035616,18]
[424910896,1781267441000,-151.0,0.00035616,7]
[424910891,1781267441000,-151.938,0.00035616,7]
[424910888,1781267441000,-151.0,0.00035616,7]
[424910900,1781267441000,-151.0,0.00035616,7]
[424910902,1781267441000,-151.0,0.00035616,7]
[424910898,1781267441000,-151.0,0.00035616,7]
[424910883,1781267441000,-177.331958,0.00035616,7]
[424910886,1781267441000,-151.0,0.00035616,7]
[424910889,1781267441000,-151.0,0.00035616,7]
[424910893,1781267441000,-500.0,0.00035616,18]
[424910904,1781267441000,-153.43844,0.00035616,7]
[424910905,1781267441000,-500.0,0.00035616,6]
[424910908,1781267441000,-597.66,0.00035616,18]
[424910917,1781267441000,-637.26,0.00035616,18]
[424910907,1781267441000,-500.0,0.00035616,18]
[424910912,1781267441000,-500.0,0.00035616,18]
[424910913,1781267441000,-500.0,0.00035616,18]
[424910924,1781267441000,-500.0,0.00035616,18]
[424910915,1781267441000,-507.86,0.00035616,18]
[424910922,1781267441000,-500.0,0.00035616,18]
[424910921,1781267441000,-1251.12,0.00035616,18]
[424910919,1781267441000,-500.0,0.00035616,18]
[424910925,1781267441000,-1324.22,0.00035616,18]
[424910927,1781267441000,-550.998442,0.00035616,7]
[424910929,1781267441000,-550.998442,0.00035616,7]
[424910941,1781267441000,-550.998442,0.00035616,7]
[424910882,1781267441000,-177.331958,0.00035616,7]
[424910993,1781267441000,-1153.42,0.00035616,18]
[424910995,1781267441000,-745.16,0.00035616,18]
[424911054,1781267441000,-500.0,0.00035616,18]
[424911056,1781267441000,-151.0,0.00035616,7]
[424911059,1781267441000,-151.0,0.00035616,7]
[424911061,1781267441000,-151.0,0.00035616,7]
[424911063,1781267441000,-206.64431,0.00035616,7]
[424911066,1781267441000,-823.38,0.00035616,2]
[424911071,1781267441000,-450.35018204,0.00035616,18]
[424911065,1781267441000,-500.0,0.00035616,18]
[424911069,1781267441000,-1105.4,0.00035616,18]
[424911068,1781267441000,-500.0,0.00035616,18]
[424911073,1781267441000,-500.0,0.00035616,2]
[424911077,1781267441000,-1158.95,0.00035616,18]
[424911079,1781267441000,-3598.32,0.00035616,18]
[424911075,1781267441000,-2042.66,0.00035616,18]
[424911084,1781267441000,-500.0,0.00035616,18]
[424911080,1781267441000,-500.0,0.00035616,18]
[424911082,1781267441000,-1863.25,0.00035616,18]
[424911086,1781267441000,-5926.29,0.00035616,18]
[424911087,1781267441000,-1075.26,0.00035616,18]
[424911089,1781267441000,-365.843135,0.00035616,7]
[424911091,1781267441000,-365.843135,0.00035616,7]
[424911096,1781267441000,-365.843135,0.00035616,7]
[424911092,1781267441000,-365.843135,0.00035616,7]
[424911101,1781267441000,-500.0,0.00035616,18]
[424911100,1781267441000,-365.843135,0.00035616,7]
[424911094,1781267441000,-365.843135,0.00035616,7]
[424911098,1781267441000,-365.843135,0.00035616,7]
[424911105,1781267441000,-635.37,0.00035616,18]
[424910996,1781267441000,-500.0,0.00035616,18]
[424911051,1781267441000,-217.575118,0.00035616,7]
[424911049,1781267441000,-151.0,0.00035616,7]
[424911103,1781267441000,-365.843135,0.00035616,7]
[424911052,1781267441000,-151.0,0.00035616,7]
[424911058,1781267441000,-151.0,0.00035616,7]
[424911002,1781267441000,-500.0,0.00035616,18]
[424911000,1781267441000,-500.0,0.00035616,18]
[424911004,1781267441000,-515.62,0.00035616,18]
[424911007,1781267441000,-515.8,0.00035616,18]
[424911006,1781267441000,-500.0,0.00035616,18]
[424911009,1781267441000,-500.0,0.00035616,18]
[424911011,1781267441000,-151.0,0.00035616,7]
[424911013,1781267441000,-151.0,0.00035616,7]
[424911015,1781267441000,-151.0,0.00035616,7]
[424911018,1781267441000,-1139.38,0.00035616,18]
[424911017,1781267441000,-500.0,0.00035616,18]
[424911020,1781267441000,-151.0,0.00035616,7]
[424911021,1781267441000,-2843.87,0.00035616,18]
[424910998,1781267441000,-500.0,0.00035616,18]
[424911026,1781267441000,-1395.61,0.00035616,18]
[424911045,1781267441000,-151.0,0.00035616,7]
[424911047,1781267441000,-151.0,0.00035616,7]
[424911042,1781267441000,-151.0,0.00035616,7]
[424911044,1781267441000,-151.0,0.00035616,7]
[424911030,1781267441000,-500.0,0.00035616,18]
[424911039,1781267441000,-2558.77,0.00035616,18]
[424911040,1781267441000,-151.0,0.00035616,7]
[424911033,1781267441000,-500.0,0.00035616,18]
[424911031,1781267441000,-29194.82,0.00035616,18]
[424911022,1781267441000,-151.0,0.00035616,7]
[424911024,1781267441000,-151.0,0.00035616,7]
[424911035,1781267441000,-500.0,0.00035616,18]
[424911028,1781267441000,-606.07,0.00035616,18]
[424911037,1781267441000,-4576.94,0.00035616,18]